bitfinex/quotes_SOLUSD_20250705
["timestamp","ask_amount","ask_price","bid_price","bid_amount"]
[1751738343377,5.09406763,147.07,147.05,11.32549294]
[1751738343577,0.03,147.09,147.05,11.32549294]
[1751738343795,5.09396375,147.08,147.05,11.32549294]
[1751738343990,5.09396375,147.07,147.05,11.32549294]
[1751738344293,0.03,147.09,147.05,11.32549294]
[1751738344510,5.09394615,147.08,147.05,11.32549294]
[1751738344676,5.09394615,147.07,147.05,11.32549294]
[1751738344873,0.03,147.09,147.05,11.32549294]
[1751738345079,5.09394368,147.08,147.05,11.32549294]
[1751738345291,5.09394368,147.07,147.05,11.32549294]
[1751738345503,0.03,147.09,147.05,11.32549294]
[1751738345813,5.09394525,147.08,147.05,11.32549294]
[1751738346008,5.09394525,147.07,147.05,11.32549294]
[1751738346301,0.03,147.09,147.05,11.32549294]
[1751738346482,5.0939638,147.08,147.05,11.32549294]
[1751738346782,5.0939638,147.07,147.05,11.32549294]
[1751738347102,0.03,147.09,147.05,11.32549294]
[1751738347273,5.09407583,147.08,147.05,11.32549294]
[1751738347475,5.09407583,147.07,147.05,11.32549294]
[1751738347676,0.03,147.09,147.05,11.32549294]
[1751738347915,5.09407583,147.08,147.05,11.32549294]
[1751738348077,5.09407583,147.07,147.05,11.32549294]
[1751738348280,0.03,147.09,147.05,11.32549294]
[1751738348480,5.09414994,147.08,147.05,11.32549294]
[1751738348782,5.09414994,147.07,147.05,4.52509107]
[1751738348996,6.82859627,147.09,147.04,11.32575671]
[1751738349194,5.09419814,147.08,147.04,11.32575671]
[1751738349393,5.09419814,147.07,147.04,4.52509107]
[1751738349597,6.82859627,147.09,147.03,45.96192875]
[1751738349795,5.0942576,147.08,147.03,45.96192875]
[1751738349990,5.0942576,147.07,147.03,45.96192875]
[1751738350198,5.0942576,147.06,147.03,45.96192875]
[1751738350394,0.03,147.09,147.05,4.52509107]
[1751738350597,5.09403407,147.08,147.05,4.52509107]
[1751738350794,5.09403407,147.07,147.05,4.52509107]
[1751738350980,0.03,147.09,147.05,4.52509107]
[1751738351181,5.09403407,147.08,147.05,4.52509107]
[1751738351388,5.09403407,147.07,147.05,4.52509107]
[1751738351602,0.03,147.09,147.05,4.52509107]
[1751738351805,5.09420144,147.08,147.05,11.32535988]
[1751738352007,5.09420144,147.07,147.05,11.32535988]
[1751738352187,0.03,147.09,147.05,11.32535988]
[1751738352388,5.09439416,147.08,147.05,11.32535988]
[1751738352686,5.09439416,147.07,147.05,11.32535988]
[1751738352881,0.03,147.09,147.05,11.32535988]
[1751738353083,5.09439169,147.08,147.05,11.32535988]
[1751738353407,5.09439169,147.07,147.06,4.52509107]
[1751738357608,5.09439169,147.07,147.06,11.32503667]
[1751738358110,5.09439169,147.07,147.05,4.52509107]
[1751738358297,0.03,147.09,147.05,4.52509107]
[1751738358498,5.09542958,147.08,147.05,4.52509107]
[1751738358798,5.09542958,147.07,147.05,4.52509107]
[1751738359111,0.03,147.09,147.06,4.52509107]
[1751738359406,5.09560543,147.08,147.06,4.52509107]
[1751738359608,5.09560543,147.07,147.06,4.52509107]
[1751738360306,5.09560543,147.07,147.06,11.32503667]
[1751738365130,5.09560543,147.07,147.04,6.80087051]
[1751738365419,0.03,147.09,147.05,4.52509107]
[1751738365604,5.0971682,147.08,147.05,4.52509107]
[1751738365792,5.0971682,147.07,147.05,4.52509107]
[1751738365992,0.03,147.09,147.05,4.52509107]
[1751738366194,5.09717067,147.08,147.05,11.32540889]
[1751738366493,5.09717067,147.07,147.05,11.32540889]
[1751738366695,0.03,147.09,147.05,11.32540889]
[1751738366898,5.09752534,147.08,147.05,11.32540889]
[1751738367097,5.09752534,147.07,147.05,11.32540889]
[1751738367396,0.03,147.09,147.05,11.32540889]
[1751738367598,5.09791747,147.08,147.04,6.80087051]
[1751738367796,5.09791747,147.07,147.05,4.52509107]
[1751738368011,0.03,147.09,147.05,4.52509107]
[1751738368220,5.09799324,147.08,147.04,6.80087051]
[1751738368420,5.09799324,147.07,147.04,11.32596158]
[1751738368622,6.82864917,147.09,147.04,11.32596158]
[1751738368828,5.09836085,147.08,147.04,11.32596158]
[1751738369011,5.09836085,147.07,147.04,11.32596158]
[1751738369213,5.0988639,147.06,147.04,11.32596158]
[1751738369533,6.82864917,147.09,147.04,11.32596158]
[1751738369727,11.89794975,147.08,147.03,45.96198067]
[1751738369925,5.09886142,147.07,147.03,7.04]
[1751738370224,5.09886142,147.06,147.03,7.04]
[1751738370422,5.09886142,147.05,147.03,7.04]
[1751738370723,13.17238569,147.08,147.03,7.04]
[1751738370928,5.09934343,147.07,147.03,7.04]
[1751738371222,5.09934343,147.06,147.03,7.04]
[1751738371525,5.09934343,147.05,147.03,7.04]
[1751738371725,6.79956024,147.07,147.03,7.04]
[1751738371930,5.09931502,147.06,147.03,7.04]
[1751738372108,5.09931502,147.05,147.03,11.56509107]
[1751738372429,6.79956024,147.07,147.03,11.56509107]
[1751738372732,5.09939054,147.06,147.03,11.56509107]
[1751738372917,5.09939054,147.05,147.03,11.56509107]
[1751738373232,6.79956024,147.07,147.03,11.56509107]
[1751738373410,5.09957646,147.06,147.03,11.56509107]
[1751738373715,5.09957646,147.05,147.03,11.56509107]
[1751738373921,6.79956024,147.07,147.03,11.56509107]
[1751738374118,5.09957646,147.06,147.03,11.56509107]
[1751738374318,5.09957646,147.05,147.03,11.56509107]
[1751738374615,6.79956024,147.07,147.03,11.56509107]
[1751738374817,5.09909368,147.06,147.03,11.56509107]
[1751738375031,5.09909368,147.05,147.03,11.56509107]
[1751738375238,6.79956024,147.07,147.03,11.56509107]
[1751738375414,5.0986523,147.06,147.03,11.56509107]
[1751738375731,5.0986523,147.05,147.03,18.36641325]
[1751738375934,6.79956024,147.07,147.03,18.36641325]
[1751738376117,5.0986523,147.06,147.03,18.36641325]
[1751738376318,5.0986523,147.05,147.03,18.36641325]
[1751738376539,6.79956024,147.07,147.03,18.36641325]
[1751738376714,5.09825873,147.06,147.03,18.36641325]
[1751738376916,5.09825873,147.05,147.03,18.36641325]
[1751738377121,13.1723183,147.08,147.03,18.36641325]
[1751738377320,5.09788007,147.07,147.03,18.36641325]
[1751738377529,5.09788007,147.06,147.04,4.52509107]
[1751738377736,5.09788007,147.05,147.04,4.52509107]
[1751738380439,5.12788007,147.05,147.04,4.52509107]
[1751738381032,5.12788007,147.05,147.03,13.84132218]
[1751738381238,0.03,147.05,147.03,18.36641325]
[1751738394148,0.03,147.05,147.04,4.52509107]
[1751738395646,0.03,147.05,147.04,11.32596158]
[1751738399535,0.03,147.05,147.04,37.32596158]
[1751738400544,0.03,147.05,147.04,74.07597472]
[1751738400830,0.03,147.05,147.04,51.45051937]
[1751738401042,0.03,147.05,147.04,74.07597472]
[1751738402823,0.03,147.05,147.04,55.97561044]
[1751738403429,0.03,147.05,147.04,74.21813629]
[1751738405729,0.03,147.05,147.04,37.32596158]
[1751738407251,4.62429888,147.08,147.04,37.32596158]
[1751738407453,0.03,147.09,147.04,37.32596158]
[1751738407950,0.03,147.09,147.04,32.80087051]
[1751738408157,0.03,147.09,147.05,4.52509107]
[1751738408550,0.03,147.09,147.06,4.52509107]
[1751738409456,0.03,147.09,147.08,4.52509107]
[1751738410160,0.03,147.09,147.08,11.32411201]
[1751738411027,0.03,147.09,147.08,4.52509107]
[1751738412053,0.03,147.09,147.06,6.79979864]
[1751738412358,0.03,147.09,147.07,4.52509107]
[1751738413152,0.03,147.09,147.08,4.52509107]
[1751738413333,0.03,147.09,147.08,11.32411201]
[1751738415562,13.09604248,147.14,147.08,11.32411201]
[1751738415747,13.09604248,147.14,147.09,4.52509107]
[1751738416468,13.09604248,147.14,147.09,11.32355594]
[1751738418338,6.79644248,147.14,147.09,11.32355594]
[1751738418554,32.82594652,147.15,147.1,4.52509107]
[1751738419250,5.08329795,147.14,147.1,4.52509107]
[1751738419560,5.08329795,147.13,147.1,4.52509107]
[1751738419757,5.08329795,147.12,147.1,4.52509107]
[1751738420055,32.82594652,147.15,147.1,4.52509107]
[1751738420259,32.82594652,147.15,147.07,6.98]
[1751738420260,5.08167725,147.14,147.07,6.98]
[1751738420450,5.08167725,147.13,147.07,6.98]
[1751738420764,5.08167725,147.12,147.07,6.98]
[1751738420958,5.08167725,147.11,147.07,13.77942924]
[1751738421266,5.08167725,147.1,147.07,13.77942924]
[1751738421464,6.36149554,147.14,147.07,13.77942924]
[1751738421665,6.79717237,147.12,147.07,13.77942924]
[1751738421864,5.08052398,147.11,147.07,13.77942924]
[1751738422062,5.08052398,147.1,147.07,13.77942924]
[1751738422268,6.79717237,147.12,147.07,13.77942924]
[1751738422469,5.08031956,147.11,147.07,13.77942924]
[1751738422668,5.08031956,147.1,147.07,6.98]
[1751738422875,5.08031956,147.09,147.03,0.06]
[1751738423046,5.08031956,147.08,147.03,0.06]
[1751738423244,5.08031956,147.07,147.03,0.06]
[1751738423472,5.08031956,147.06,147.03,0.06]
[1751738423768,11.88089515,147.05,147.03,0.06]
[1751738423956,5.08031956,147.04,147.03,0.06]
[1751738424158,6.80057559,147.05,147.03,0.06]
[1751738424671,5.07806304,147.04,147.03,0.06]
[1751738428177,5.07806304,147.05,147.03,0.06]
[1751738428472,5.07806304,147.04,147.03,0.06]
[1751738428674,5.07806304,147.05,147.03,0.06]
[1751738428877,6.80005659,147.06,147.03,0.06]
[1751738429080,5.07731441,147.05,147.03,0.06]
[1751738429251,6.80005659,147.06,147.03,0.06]
[1751738429447,5.0767407,147.05,147.03,0.06]
[1751738429652,6.80005659,147.06,147.03,0.06]
[1751738429875,5.07673474,147.05,147.03,0.06]
[1751738430074,6.80005659,147.06,147.03,0.06]
[1751738430366,5.07740974,147.05,147.03,0.06]
[1751738430569,6.79948323,147.07,147.03,0.06]
[1751738430865,5.07755995,147.06,147.03,0.06]
[1751738431067,5.07755995,147.05,147.03,0.06]
[1751738431273,6.79948323,147.07,147.03,0.06]
[1751738431463,11.87735938,147.06,147.03,0.06]
[1751738431774,5.07708539,147.05,147.03,0.06]
[1751738431953,6.80027399,147.06,147.03,0.06]
[1751738432151,5.07708399,147.05,147.03,0.06]
[1751738432383,6.80027399,147.06,147.03,0.06]
[1751738432673,11.87702957,147.05,147.03,0.06]
[1751738432879,5.0760462,147.04,147.03,0.06]
[1751738433184,5.21820777,147.04,147.03,0.06]
[1751738434957,12.01907828,147.04,147.03,0.06]
[1751738438678,11.87691671,147.04,147.03,0.06]
[1751738439176,6.80087051,147.04,147.03,0.06]
[1751738439382,11.87691671,147.04,147.03,0.06]
[1751738439761,6.80087051,147.04,147.03,0.06]
[1751738443665,5.0760462,147.05,147.03,0.06]
[1751738443870,183.08,147.07,147.03,0.06]
[1751738444079,5.06097712,147.06,147.03,0.06]
[1751738444995,11.86096047,147.06,147.03,0.06]
[1751738445691,5.0608443,147.06,147.03,0.06]
[1751738445882,155.59954746,147.07,147.03,0.06]
[1751738450176,148.8,147.07,147.04,7.07287509]
[1751738450799,6.79921194,147.08,147.04,7.07287509]
[1751738452270,6.79921194,147.08,147.03,0.06]
[1751738452467,6.79921194,147.08,147.03,7.13287509]
[1751738452672,11.86513568,147.08,147.03,7.13287509]
[1751738452899,5.06592374,147.07,147.03,7.13287509]
[1751738453389,6.79967916,147.07,147.03,7.13287509]
[1751738453771,11.8656029,147.07,147.03,7.13287509]
[1751738453974,6.79967916,147.07,147.03,7.13287509]
[1751738454693,6.79902094,147.08,147.03,7.13287509]
[1751738454896,11.86451004,147.08,147.03,7.13287509]
[1751738455102,5.0654891,147.07,147.03,7.13287509]
[1751738455585,11.86527188,147.07,147.03,7.13287509]
[1751738455792,6.79978278,147.07,147.03,7.13287509]
[1751738456502,11.86576227,147.07,147.03,7.13287509]
[1751738456674,6.79902094,147.08,147.03,7.13287509]
[1751738457179,11.86571156,147.08,147.03,7.13287509]
[1751738457386,5.06669062,147.07,147.03,7.13287509]
[1751738457595,11.86644051,147.07,147.03,7.13287509]
[1751738457796,6.79974989,147.07,147.03,7.13287509]
[1751738458499,11.86553291,147.07,147.03,0.06]
[1751738458699,6.94072027,147.09,147.03,0.06]
[1751738459002,5.06496743,147.08,147.03,0.06]
[1751738459189,5.06496743,147.07,147.03,0.06]
[1751738459389,5.06496743,147.08,147.03,0.06]
[1751738459590,6.94072027,147.09,147.03,0.06]
[1751738459591,5.06496743,147.07,147.03,0.06]
[1751738459796,6.79948323,147.07,147.03,0.06]
[1751738459994,11.86445066,147.07,147.03,0.06]
[1751738460192,6.79948323,147.07,147.03,0.06]
[1751738460687,11.86769171,147.07,147.03,0.06]
[1751738460886,6.79902094,147.08,147.03,0.06]
[1751738461190,5.06868638,147.07,147.03,0.06]
[1751738462308,11.86863198,147.06,147.03,0.06]
[1751738462491,6.7999456,147.06,147.03,0.06]
[1751738463199,5.07218436,147.05,147.03,0.06]
[1751738464177,6.7999456,147.06,147.03,0.06]
[1751738464390,5.07744408,147.05,147.03,0.06]
[1751738464777,5.07744408,147.06,147.03,7.13287509]
[1751738464979,5.07744408,147.05,147.03,7.13287509]
[1751738465195,6.79965902,147.07,147.03,7.13287509]
[1751738465395,5.08090246,147.06,147.03,7.13287509]
[1751738465602,5.08090246,147.05,147.03,7.13287509]
[1751738465803,6.79902094,147.08,147.03,7.13287509]
[1751738466009,5.08090544,147.07,147.03,7.13287509]
[1751738466195,5.08090544,147.06,147.03,7.13287509]
[1751738466505,5.08090544,147.05,147.03,0.06]
[1751738466694,6.79902094,147.08,147.03,7.13287509]
[1751738467006,11.8822483,147.07,147.03,7.13287509]
[1751738467208,5.08237472,147.06,147.03,7.13287509]
[1751738467409,5.08237472,147.05,147.03,7.13287509]
[1751738467610,6.79987358,147.07,147.03,7.13287509]
[1751738467808,5.08419266,147.06,147.03,7.13287509]
[1751738468011,5.08419266,147.05,147.03,7.13287509]
[1751738468321,6.79987358,147.07,147.03,7.13287509]
[1751738468503,5.08388681,147.06,147.03,7.13287509]
[1751738468704,5.08388681,147.05,147.03,7.13287509]
[1751738468895,6.79987358,147.07,147.03,7.13287509]
[1751738469094,5.0835867,147.06,147.03,7.13287509]
[1751738469294,5.0835867,147.05,147.03,7.13287509]
[1751738469507,6.79987358,147.07,147.03,7.13287509]
[1751738469710,5.08281171,147.06,147.03,7.13287509]
[1751738469995,5.08281171,147.05,147.03,7.13287509]
[1751738470205,6.79987358,147.07,147.03,7.13287509]
[1751738470411,5.08218751,147.06,147.03,7.13287509]
[1751738470592,5.08218751,147.05,147.03,7.13287509]
[1751738470794,6.79987358,147.07,147.03,7.13287509]
[1751738470994,5.08218975,147.06,147.03,7.13287509]
[1751738471195,5.08218975,147.05,147.03,7.13287509]
[1751738471407,6.79987358,147.07,147.03,7.13287509]
[1751738471611,5.08203605,147.06,147.03,7.13287509]
[1751738471803,5.08203605,147.05,147.03,4.58551409]
[1751738472002,6.79987358,147.07,147.03,4.58551409]
[1751738472193,5.08210346,147.06,147.03,4.58551409]
[1751738472389,5.08210346,147.05,147.03,4.58551409]
[1751738472604,6.79987358,147.07,147.03,4.58551409]
[1751738472919,5.08216326,147.06,147.03,4.58551409]
[1751738473105,5.08216326,147.05,147.03,4.58551409]
[1751738473310,6.79987358,147.07,147.03,0.06]
[1751738473499,0.14216157,147.05,147.03,0.06]
[1751738473701,12.02525692,147.04,147.03,0.06]
[1751738475203,18.38675246,147.04,147.03,0.06]
[1751738475507,12.02525692,147.04,147.03,0.06]
[1751738479120,18.79181043,147.03,147.0,57.06]
[1751738479310,5.08222484,147.02,147.0,57.06]
[1751738479497,5.08222484,147.01,147.0,57.06]
[1751738480905,11.88448318,147.01,147.0,57.06]
[1751738489924,46.14448318,147.01,147.0,57.06]
[1751738490425,64.93629361,147.01,147.0,57.06]
[1751738491924,59.85406877,147.01,147.0,57.06]
[1751738492232,64.9178376,147.01,147.0,57.06]
[1751738499229,64.91636738,147.01,147.0,57.06]
[1751738500432,11.86455695,147.01,147.0,57.06]
[1751738500639,41.08225834,147.01,147.0,57.06]
[1751738500931,46.14455695,147.01,147.0,57.06]
[1751738507845,45.64455695,147.01,147.0,57.06]
[1751738518147,51.97243022,147.01,147.0,57.06]
[1751738518346,5.06229861,147.01,147.0,72.46504953]
[1751738518539,3.39569861,147.02,147.0,78.95624953]
[1751738518750,0.03,147.03,147.01,7.07742845]
[1751738518945,0.03,147.03,147.02,7.07742845]
[1751738520345,0.03,147.03,147.02,13.87922412]
[1751738521153,0.03,147.03,147.02,6.80179567]
[1751738521356,0.03,147.03,147.02,13.87922412]
[1751738529846,0.03,147.03,147.01,6.80225834]
[1751738530051,0.03,147.03,147.02,4.52522285]
[1751738531769,0.03,147.03,147.02,7.07234382]
[1751738532675,0.03,147.03,147.0,72.14844382]
[1751738533664,5.10875673,147.03,147.01,7.07234382]
[1751738533865,0.03,147.03,147.01,7.07234382]
[1751738534066,5.10875673,147.03,147.01,7.07234382]
[1751738534366,0.03,147.03,147.01,7.07234382]
[1751738534689,5.10875673,147.03,147.01,7.07234382]
[1751738534857,0.03,147.03,147.01,7.07234382]
[1751738535056,5.10875673,147.03,147.01,7.07234382]
[1751738535486,5.10875673,147.03,147.0,65.65724382]
[1751738537088,5.10875673,147.03,147.01,7.07234382]
[1751738539371,0.03,147.03,147.01,7.07234382]
[1751738539702,5.10875673,147.03,147.02,7.07234382]
[1751738539866,0.03,147.03,147.02,7.07234382]
[1751738541161,0.03,147.03,147.02,13.24404382]
[1751738541469,0.03,147.03,147.02,20.04583949]
[1751738542973,0.03,147.03,147.02,13.87413949]
[1751738546092,0.03,147.03,147.02,7.07234382]
[1751738547094,0.03,147.03,147.01,40.05234382]
[1751738547271,0.03,147.03,147.01,14.05234382]
[1751738548492,0.03,147.03,147.01,6.98]
[1751738550303,0.03,147.03,147.0,64.13234382]
[1751738550679,5.10966697,147.03,147.0,64.13234382]
[1751738550879,0.03,147.03,147.0,64.13234382]
[1751738552799,5.11153541,147.03,147.0,64.13234382]
[1751738553186,0.03,147.03,147.0,64.13234382]
[1751738554197,0.03,147.03,147.0,57.06]
[1751738554198,5.08213455,147.02,147.0,57.06]
[1751738554401,0.03,147.03,147.0,57.06]
[1751738554602,5.08296712,147.02,147.0,57.06]
[1751738554802,0.03,147.03,147.0,57.06]
[1751738555094,5.08349175,147.02,147.0,57.06]
[1751738555300,0.03,147.03,147.0,57.06]
[1751738555505,5.08438033,147.02,147.0,57.06]
[1751738555686,0.03,147.03,147.0,57.06]
[1751738555884,5.08437909,147.02,147.0,57.06]
[1751738556102,6.83136416,147.03,147.0,57.06]
[1751738556304,5.08512441,147.02,147.0,57.06]
[1751738556508,6.83136416,147.03,147.0,57.06]
[1751738556707,5.08527626,147.02,147.0,57.06]
[1751738556909,0.03,147.03,147.0,57.06]
[1751738557094,5.0853325,147.02,147.0,57.06]
[1751738557294,0.03,147.03,147.0,57.06]
[1751738557507,5.08636062,147.02,147.0,57.06]
[1751738557701,0.03,147.03,147.0,57.06]
[1751738558006,5.08636062,147.02,147.0,57.06]
[1751738558194,0.03,147.03,147.0,57.06]
[1751738558391,5.08731867,147.02,147.0,57.06]
[1751738558709,5.08756548,147.01,147.0,57.06]
[1751738558895,11.88982382,147.01,147.0,57.06]
[1751738562304,37.03013335,147.01,147.0,57.06]
[1751738563093,30.68163425,147.01,147.0,44.28829029]
[1751738563305,37.04352547,147.01,147.0,44.28829029]
[1751738563511,56.68163425,147.01,147.0,9.31367232]
[1751738565215,0.14216157,147.0,146.99,0.06]
[1751738565414,51.59545718,146.98,146.97,0.2]
[1751738565619,56.68302266,146.98,146.97,0.2]
[1751738568100,38.0333738,146.98,146.97,0.2]
[1751738569202,32.94580832,146.98,146.97,0.2]
[1751738569598,38.01524069,146.98,146.97,0.2]
[1751738569812,11.87307912,146.98,146.97,0.2]
[1751738570510,6.80364675,146.98,146.97,0.2]
[1751738575326,11.86927507,146.98,146.97,0.2]
[1751738575923,6.80364675,146.98,146.97,0.2]
[1751738576124,11.86861468,146.98,146.97,0.2]
[1751738584031,30.66042511,146.98,146.97,0.2]
[1751738592044,0.14216157,146.97,146.92,0.2]
[1751738592235,0.14216157,146.95,146.92,0.2]
[1751738593237,6.80549884,146.94,146.92,0.2]
[1751738593945,6.80523416,146.95,146.92,0.2]
[1751738596344,11.87759318,146.95,146.92,0.2]
[1751738599655,0.14216157,146.94,146.92,0.2]
[1751738599822,5.21452059,146.94,146.92,0.2]
[1751738600431,6.80596202,146.93,146.92,0.2]
[1751738602131,11.87832104,146.93,146.92,0.2]
[1751738609244,11.8958785,146.93,146.92,0.2]
[1751738610170,11.89594136,146.93,146.92,0.2]
[1751738630678,5.08997934,146.93,146.92,4.73417016]
[1751738631059,5.09985573,146.93,146.92,4.73417016]
[1751738642792,6.80507964,146.95,146.92,4.73417016]
[1751738642980,5.09964945,146.94,146.92,4.73417016]
[1751738643291,5.09964945,146.93,146.92,0.2]
[1751738646783,5.09964945,146.93,146.92,4.73417016]
[1751738652303,5.09964945,146.93,146.92,0.2]
[1751738655697,5.09964945,146.93,146.92,4.73417016]
[1751738666613,5.09964945,146.93,146.92,0.2]
[1751738666792,5.09964945,146.93,146.92,4.73417016]
[1751738667713,5.09964945,146.93,146.92,0.2]
[1751738667892,5.09964945,146.93,146.92,4.73417016]
[1751738669618,5.09964945,146.93,146.92,0.2]
[1751738669917,5.09964945,146.93,146.92,4.73417016]
[1751738677718,5.09964945,146.93,146.92,0.2]
[1751738678017,5.09964945,146.93,146.92,4.73417016]
[1751738679415,5.09964945,146.93,146.92,0.2]
[1751738679616,5.09964945,146.93,146.92,4.73417016]
[1751738681827,5.09964945,146.93,146.92,0.2]
[1751738686428,11.90561147,146.93,146.92,0.2]
[1751738686909,12.04777304,146.93,146.92,0.2]
[1751738695338,37.07198371,146.93,146.92,0.2]
[1751738695549,30.6974219,146.93,146.92,0.2]
[1751738695916,56.6974219,146.93,146.92,0.2]
[1751738696632,56.6974219,146.93,146.91,0.06]
[1751738696837,206.97145988,146.92,146.91,1e-08]
[1751738697135,208.48305988,146.92,146.91,1e-08]
[1751738698440,215.28948514,146.92,146.91,1e-08]
[1751738699236,221.65620363,146.92,146.91,1e-08]
[1751738699741,220.14460363,146.92,146.91,1e-08]
[1751738700634,213.77788514,146.92,146.91,1e-08]
[1751738701335,26.0,146.89,146.88,0.06]
[1751738701540,65.37964945,146.89,146.88,0.06]
[1751738701737,84.17145988,146.89,146.88,0.06]
[1751738701916,18.79181043,146.88,146.87,0.2]
[1751738702114,23.89145988,146.88,146.86,0.2]
[1751738702362,39.37964945,146.87,146.86,0.2]
[1751738703340,46.18839187,146.87,146.86,0.2]
[1751738706244,64.9802023,146.87,146.86,0.2]
[1751738706426,90.9802023,146.87,146.86,0.2]
[1751738706628,90.9802023,146.87,146.86,1e-08]
[1751738707217,94.45378819,146.87,146.86,1e-08]
[1751738707826,90.9802023,146.87,146.86,1e-08]
[1751738711247,18.79181043,146.86,146.85,1e-08]
[1751738711439,23.89145988,146.86,146.84,1e-08]
[1751738711746,84.19145988,146.85,146.84,1e-08]
[1751738713234,91.00112961,146.85,146.84,1e-08]
[1751738716657,85.90148016,146.85,146.84,1e-08]
[1751738716859,90.95852802,146.85,146.84,1e-08]
[1751738719059,64.95852802,146.85,146.84,1e-08]
[1751738722363,26.0,146.83,146.82,0.2]
[1751738722547,84.14885829,146.83,146.82,0.2]
[1751738723772,90.95945557,146.83,146.82,0.2]
[1751738739903,97.2807654,146.83,146.82,0.2]
[1751738740382,97.31310711,146.83,146.81,0.06]
[1751738740582,5.05704786,146.82,146.81,0.06]
[1751738741485,11.86810902,146.82,146.81,0.06]
[1751738743365,18.22176056,146.82,146.81,0.06]
[1751738744786,26.0,146.79,146.77,0.06]
[1751738744961,58.14885829,146.78,146.77,0.06]
[1751738747181,64.96177558,146.78,146.77,0.06]
[1751738749687,213.76177558,146.78,146.77,0.06]
[1751738751392,220.11542712,146.78,146.77,0.06]
[1751738752290,213.76177558,146.78,146.77,0.06]
[1751738752470,220.11542712,146.78,146.77,0.06]
[1751738752995,213.76177558,146.78,146.77,0.06]
[1751738753596,220.11542712,146.78,146.77,0.06]
[1751738755882,213.26177558,146.78,146.77,0.06]
[1751738757197,219.61542712,146.78,146.77,0.06]
[1751738757410,213.26177558,146.78,146.77,0.06]
[1751738764893,64.46177558,146.78,146.77,1e-08]
[1751738765087,70.81542712,146.78,146.77,1e-08]
[1751738765884,81.4940688,146.78,146.72,6.0147]
[1751738766088,18.79181043,146.76,146.72,6.0147]
[1751738766302,46.17135791,146.75,146.72,6.0147]
[1751738766512,5.05704786,146.74,146.72,6.0147]
[1751738766713,34.3,146.73,146.72,6.0147]
[1751738766906,39.35704786,146.73,146.72,6.0147]
[1751738770114,41.11523887,146.73,146.72,6.0147]
[1751738770510,39.38595576,146.73,146.72,6.0147]
[1751738772221,34.3,146.73,146.72,6.0147]
[1751738772514,39.3860177,146.73,146.72,6.0747]
[1751738773116,34.3,146.73,146.72,6.0747]
[1751738773318,39.3859008,146.73,146.72,6.0747]
[1751738773696,34.3,146.73,146.72,6.0747]
[1751738773896,39.38483824,146.73,146.72,6.0747]
[1751738774520,39.38435778,146.73,146.72,6.0747]
[1751738775421,34.3,146.73,146.72,6.0747]
[1751738775600,39.38498829,146.73,146.72,6.0747]
[1751738783021,39.38498829,146.73,146.72,10.60887016]
[1751738783227,148.8,146.77,146.72,35.56125418]
[1751738783527,5.09263567,146.76,146.73,6.81505114]
[1751738783827,183.12,146.77,146.75,4.53417016]
[1751738784123,34.32,146.77,146.76,4.53417016]
[1751738784311,39.41263853,146.77,146.76,4.53417016]
[1751738790215,39.41263853,146.77,146.76,4.53417016]
[1751738793528,39.41263853,146.77,146.75,4.53417016]
[1751738793721,5.09263853,146.76,146.75,4.53417016]
[1751738797521,0.03,146.77,146.75,11.34848021]
[1751738797721,0.03,146.77,146.76,4.53417016]
[1751738797931,5.13029204,146.77,146.76,4.53417016]
[1751738799635,5.13029204,146.77,146.75,6.81431005]
[1751738799812,0.03,146.77,146.76,4.53417016]
[1751738800012,5.12666969,146.77,146.76,4.53417016]
[1751738800240,0.03,146.77,146.76,4.53417016]
[1751738801719,0.03,146.77,146.75,6.81431005]
[1751738801928,0.03,146.77,146.76,4.53417016]
[1751738804257,0.03,146.77,146.76,11.34801589]
[1751738804469,0.03,146.77,146.76,4.53417016]
[1751738806624,0.03,146.77,146.75,6.81396909]
[1751738806827,0.03,146.77,146.76,4.53417016]
[1751738811637,0.03,146.77,146.75,6.81396909]
[1751738811856,0.03,146.77,146.76,4.53417016]
[1751738813755,0.03,146.77,146.72,6.0747]
[1751738813949,5.09220365,146.76,146.72,0.06]
[1751738814131,5.09220365,146.75,146.72,0.06]